Cogmind - Beta 10.2 @@@ ROGUE MODE // 2020.11.05 @ 10:03:10 Player: Neville Result: Destroyed by G-47 Trooper with Particle Gun Performance ------------- Evolutions (1) 500 Regions Visited (4) 800 Robots Destroyed (46) 230 Value Destroyed (885) 885 Prototype IDs (0) 0 Alien Tech Used (0) 0 Bonus (-32) -32 TOTAL SCORE: 2383 Bonus ------- Friendly Fire -32 Cogmind --------- Core Integrity 0/400 Matter 259/300 Energy 305/415 System Corruption 3% Temperature Cool (9) Movement Rolling (120) Ox2 Location -9/Storage Parts ------- > --- POWER (2) -------- Ion Engine Improved Ion Engine > --- PROPULSION (2) --- Compact Wheel > --- UTILITY (3) ------ Large Storage Unit Hardened Light Armor Plating > --- WEAPON (2) ------- Autogun Improved Light Cannon > --- INVENTORY (10) --- Heat Sink Melee Analysis Suite Beam Rifle Spread Laser Beam Cannon Heavy Hammer Mining Claw Katana Peak State ------------ > --- POWER ------------ Ion Engine Light Ion Engine > --- PROPULSION ------- Compact Wheel > --- UTILITY ---------- Large Storage Unit Improved Terrain Scanner Seismic Analyzer > --- WEAPON ----------- Autogun Improved Light Cannon > --- INVENTORY -------- Heat Sink Light Armor Plating Spread Laser Heavy Assault Rifle Rocket Launcher Heavy Hammer Mining Claw [Rating: 12] Favorites ----------- Power Ion Engine Engine Ion Engine Power Core Light Nuclear Core Propulsion Compact Wheel Treads Light Treads Wheel Compact Wheel Hover Unit Improved Hover Unit Utility Small Storage Unit Device Improved Terrain Scanner Storage Small Storage Unit Processor Seismic Analyzer Protection Hardened Light Armor Plating Weapon Light Assault Rifle Energy Gun EM Pulse Gun Energy Cannon Beam Cannon Ballistic Gun Light Assault Rifle Ballistic Cannon Improved Light Cannon Launcher Grenade Launcher Slashing Weapon Mining Claw Build | -11 -10 -10 -9 -9 ------- Run | Scr Mat Min Mat Sto Slots Evolved 2 | . . . 2 . Power 1 | . . . 1 . Propulsion . | . . . . . Utility 1 | . . . 1 . Weapon . | . . . . . Parts Attached 37 | 6 8 3 10 10 Power 9 | 1 2 1 3 2 Engine 8 | 1 1 1 3 2 Core 1 | . 1 . . . Reactor . | . . . . . Propulsion 7 | 2 1 . 3 1 Treads 1 | . . . 1 . Leg . | . . . . . Wheel 5 | 2 1 . 1 1 Hover 1 | . . . 1 . Flight . | . . . . . Utility 7 | 1 2 1 1 2 Device 2 | . . . 1 1 Storage 3 | 1 2 . . . Processor 1 | . . 1 . . Hackware . | . . . . . Protection 1 | . . . . 1 Artifact . | . . . . . Weapon 14 | 2 3 1 3 5 Energy Gun 3 | 1 . 1 1 . Energy Cannon 1 | . . . . 1 Ballistic Gun 4 | 1 1 . 1 1 Ballistic Cannon 2 | . . . . 2 Launcher 2 | . 1 . . 1 Special Weapon . | . . . . . Impact Weapon . | . . . . . Slashing Weapon 2 | . 1 . 1 . Piercing Weapon . | . . . . . Special Melee Weapon . | . . . . . Unidentified Prototypes . | . . . . . Parts Lost 10 | . 1 1 6 2 Power 3 | . . . 2 1 Propulsion 2 | . . 1 1 . Utility . | . . . . . Weapon 5 | . 1 . 3 1 Highest Loss Streak 5 | . 1 1 5 2 Average Slot Usage (%) 83 | . 98 85 69 82 Engine 15 | . 12 14 14 18 Treads 2 | . . . . 7 Wheel 13 | . 26 23 9 3 Device 4 | . . . 2 9 Storage 15 | . 28 16 11 11 Processor 6 | . . 2 11 9 Energy Gun 5 | . 6 12 8 . Ballistic Gun 6 | . 12 . . 10 Ballistic Cannon 1 | . . . . 3 Launcher 5 | . 4 14 8 1 Slashing Weapon 3 | . 4 1 1 5 Naked Turns . | . . . . . Heaviest Build 45 | 12 42 45 36 40 Greatest Support 32 | 32 32 32 20 20 Greatest Overweight (x) 6 | 3 2 1 6 2 Average Overweight (x) . | . 1 . 1 1 Largest Inventory Capacity 16 | 6 16 16 10 10 Average Capacity 7 | 5 15 10 10 10 Most Carried 9 | 2 5 4 7 9 Average Carried 2 | 1 2 2 4 4 Final Capacity 16 | 6 16 10 10 10 Final Carried 8 | 2 . 4 2 8 Class Distribution -------------------- 90% | Mutant 9% | Scavenger-Mutant Dominant Class ---------------- Mutant | -10/Materials Mutant | -10/Mines Mutant | -9/Materials Scavenger-Mutant | -9/Storage Resources | -11 -10 -10 -9 -9 ----------- Run | Scr Mat Min Mat Sto Matter Collected 937 | 233 118 201 161 224 Remotely . | . . . . . Salvage Created 1485 | . 237 337 442 469 Parts 93 | . 17 22 34 20 Haulers Intercepted . | . . . . . Recyclers Shooed 2 | . . 1 . 1 Parts Field Recycled . | . . . . . Retrieved Matter . | . . . . . Parts Self-Destructed . | . . . . . Prevented . | . . . . . Kills | -11 -10 -10 -9 -9 ------- Run | Scr Mat Min Mat Sto Combat Hostiles Destroyed 22 | . 4 2 9 7 Melee 1 | . . . 1 . Guns 9 | . 3 1 3 2 Cannons 4 | . . . . 4 AOE 8 | . 1 1 5 1 Classes Destroyed 10 | . 4 2 3 1 Worker 5 | . 2 2 1 . Builder 7 | . 1 3 3 . Tunneler 3 | . . 2 1 . Recycler 7 | . . 2 2 3 Operator 1 | . . . 1 . Watcher 1 | . 1 . . . Swarmer 6 | . . . 6 . Grunt 11 | . 4 2 1 4 Duelist 1 | . . . . 1 Sentry 4 | . . . 2 2 Best Kill Streak 13 | . 3 6 13 3 Combat Bots Only 6 | . 2 2 6 3 Max Kills in Single Turn 3 | . 1 1 3 2 Gunslinging . | . . . . . Exploded 2 | . 1 1 2 1 Melee 1 | . . . 1 . Uniques/NPCs Destroyed . | . . . . . Combat | -11 -10 -10 -9 -9 -------- Run | Scr Mat Min Mat Sto Damage Taken 1648 | . 364 117 699 468 Core 481 | . 56 19 305 101 Absorbed by Shields . | . . . . . Core Remaining (%) 85 | 100 . 70 . . Volleys Fired 92 | . 33 24 16 19 Largest 2 | . 2 2 2 2 Hottest 86 | . 60 86 86 83 Shots Fired 161 | . 63 36 25 37 Gun 116 | . 60 23 14 19 Cannon 15 | . . . . 15 Launcher 30 | . 3 13 11 3 Special . | . . . . . Kinetic 68 | . 43 . . 25 Thermal 46 | . . 23 14 9 Explosive 30 | . 3 13 11 3 Electromagnetic 17 | . 17 . . . Robot Hit Streak 9 | . 9 4 6 5 Robot Miss Streak 5 | . 3 3 5 2 Penetration Max . | . . . . . Secondary Targets . | . . . . . Shots Hit Robots 100 | . 43 15 17 25 Core Hits 78 | . 17 22 24 15 Critical Hits . | . . . . . Critical Kills . | . . . . . Critical Parts Destroyed . | . . . . . Melee Attacks 6 | . . . 6 . Impact . | . . . . . Slashing 6 | . . . 6 . Piercing . | . . . . . Sneak Attacks . | . . . . . Combat Hostiles . | . . . . . Follow-up Attacks . | . . . . . Damage Inflicted 2567 | . 624 536 860 547 Guns 891 | . 438 160 86 207 Cannons 218 | . . . . 218 Explosions 1361 | . 186 376 677 122 Melee 97 | . . . 97 . Ramming . | . . . . . Kinetic 588 | . 251 . . 337 Thermal 409 | . 75 160 86 88 Explosive 1235 | . 111 376 626 122 Electromagnetic 238 | . 187 . 51 . Impact . | . . . . . Slashing 97 | . . . 97 . Piercing . | . . . . . Highest Corruption 3 | . . . . 3 Average Corruption 2 | . . . . 2 Corruption Purged . | . . . . . Effects 6 | . . . . 6 Matter Fused 2 | . . . . 2 Energy Discharges 2 | . . . . 2 Targeting Errors 2 | . . . . 2 Overload Shots . | . . . . . Overflow Damage 76 | . . . 35 41 Projectiles . | . . . . . Explosions 76 | . . . 35 41 Melee . | . . . . . Knockbacks . | . . . . . Impact . | . . . . . Kinetic . | . . . . . Secondary . | . . . . . Self-Inflicted Damage 220 | . 39 44 43 94 Shots 9 | . 2 2 3 2 Rammed . | . . . . . Targets Rammed . | . . . . . Kicked . | . . . . . Crushed . | . . . . . Highest Temperature 303 | . 154 275 80 303 Average Temperature 68 | . 43 91 26 95 Received Heat Transfer 588 | . 183 42 243 120 Effects 2 | . . . . 2 Interference 2 | . . . . 2 Siege Activations . | . . . . . Robots Corrupted . | . . . . . Combat Hostiles . | . . . . . Parts Fried . | . . . . . Impact Corruptions . | . . . . . Robots Melted . | . . . . . Combat Hostiles . | . . . . . Parts Melted 1 | . . . . 1 Heat Transferred 891 | . 100 407 199 185 Parts Sabotaged . | . . . . . Parts Stolen . | . . . . . Parts Stripped . | . . . . . Power Chain Reactions 1 | . 1 . . . Missiles Intercepted . | . . . . . Alert | -11 -10 -10 -9 -9 ------- Run | Scr Mat Min Mat Sto Peak Influence 387 | . 127 149 387 218 Initial 163 | . . 49 57 163 Average 38 | . 55 99 168 152 Maximum Alert Level 1 | . . . 1 1 Low Security (%) 96 | 100 100 100 77 82 Level 1 3 | . . . 22 17 Level 2 . | . . . . . Level 3 . | . . . . . Level 4 . | . . . . . Level 5 . | . . . . . High Security . | . . . . . Max Security . | . . . . . Squads Dispatched 5 | . 2 . 1 2 Investigation 2 | . 1 . . 1 Extermination . | . . . . . Reinforcement 3 | . 1 . 1 1 Assault . | . . . . . Garrison . | . . . . . Intercept . | . . . . . Construction Impeded . | . . . . . Haulers Reinforced . | . . . . . Stealth | -11 -10 -10 -9 -9 --------- Run | Scr Mat Min Mat Sto Distress Signals 2 | . 1 . . 1 Communications Jammed . | . . . . . Distress Signals . | . . . . . Times Spotted 44 | . 11 4 17 12 Peak Tracking Total 9 | . 4 2 9 5 Tactical Retreats 2 | . . . 1 1 Traps | -11 -10 -10 -9 -9 ------- Run | Scr Mat Min Mat Sto Traps Triggered 2 | . . . . 2 Indirectly . | . . . . . Trap Hack Attempts . | . . . . . Triggered . | . . . . . Disarmed . | . . . . . Reprogrammed . | . . . . . Reused . | . . . . . Traps Extracted . | . . . . . Installed . | . . . . . Triggered . | . . . . . Machines | -11 -10 -10 -9 -9 ---------- Run | Scr Mat Min Mat Sto Machines Disabled 6 | . . 1 4 1 Max in Single Turn 2 | . . 1 2 1 Machines Sabotaged . | . . . . . Garrisons Compromised . | . . . . . Overloaded Fab Kills . | . . . . . Fab Network Shutdowns . | . . . . . Hacking | -11 -10 -10 -9 -9 --------- Run | Scr Mat Min Mat Sto Machines Accessed 2 | . . . 1 1 Terminals . | . . . . . Fabricators . | . . . . . Repair Stations 1 | . . . . 1 Recycling Units 1 | . . . 1 . Scanalyzers . | . . . . . Garrison Access . | . . . . . Total Hacks 6 | . . . 1 5 Successful 2 | . . . . 2 Failed 4 | . . . 1 3 Catastrophic . | . . . . . Database Lockouts . | . . . . . Manual . | . . . . . Terminals . | . . . . . Fabricators . | . . . . . Repair Stations 5 | . . . . 5 Recycling Units 1 | . . . 1 . Scanalyzers . | . . . . . Garrison Access . | . . . . . Terminal Hacks . | . . . . . Fabricator Hacks . | . . . . . Repair Station Hacks 2 | . . . . 2 Scan Component 1 | . . . . 1 Repair 1 | . . . . 1 Recycling Unit Hacks . | . . . . . Scanalyzer . | . . . . . Garrison Access Hacks . | . . . . . Unauthorized Hacks . | . . . . . Terminals . | . . . . . Fabricators . | . . . . . Repair Stations . | . . . . . Recycling Units . | . . . . . Scanalyzers . | . . . . . Garrison Access . | . . . . . Data Cores Recovered . | . . . . . Used . | . . . . . Hacking Detections 2 | . . . 1 1 Full Trace Events 1 | . . . . 1 Feedback Events . | . . . . . Feedback Blocked . | . . . . . Robot Schematics Acquired . | . . . . . Robots Built . | . . . . . Matter . | . . . . . Time . | . . . . . Total Robot Build Rating . | . . . . . Part Schematics Acquired . | . . . . . Parts Built . | . . . . . Matter . | . . . . . Time . | . . . . . Total Part Build Rating . | . . . . . Parts Repaired 1 | . . . . 1 Time 26 | . . . . 26 Parts Recycled . | . . . . . Recycled Matter . | . . . . . Retrieved Matter . | . . . . . Retrieved Components . | . . . . . Parts Scanalyzed . | . . . . . Part Schematics Acquired . | . . . . . Parts Damaged . | . . . . . Bothacking | -11 -10 -10 -9 -9 ------------ Run | Scr Mat Min Mat Sto Used RIF Installer . | . . . . . Robots Hacked . | . . . . . Non-combat . | . . . . . Combat . | . . . . . Robot Hacks Applied . | . . . . . Relay Couplers Released . | . . . . . Robots Rewired . | . . . . . Allies Hacked . | . . . . . Hacks Repelled . | . . . . . Allies | -11 -10 -10 -9 -9 -------- Run | Scr Mat Min Mat Sto Total Allies . | . . . . . Largest Group . | . . . . . Highest-Rated Group . | . . . . . Highest-Rated Ally . | . . . . . Total Orders . | . . . . . Ally Attacks . | . . . . . Total Damage . | . . . . . Kills . | . . . . . Allies Corrupted . | . . . . . Allies Melted . | . . . . . Intel | -11 -10 -10 -9 -9 ------- Run | Scr Mat Min Mat Sto Robot Analysis Total . | . . . . . Derelict Logs Recovered . | . . . . . Drone Launches . | . . . . . Drone Recoveries . | . . . . . Exploration | -11 -10 -10 -9 -9 ------------- Run | Scr Mat Min Mat Sto Turns Passed 4420 | 3062 273 261 299 525 Spaces Moved 1445 | 747 145 182 189 182 Core 10 | 9 . . 1 . Treads 88 | . . . 9 79 Legs . | . . . . . Wheels 1347 | 738 145 182 179 103 Hover . | . . . . . Flight . | . . . . . Fastest Speed 50 | 50 100 100 110 110 Average Speed 109 | 99 111 105 117 141 Slowest Speed 350 | 200 120 110 350 180 Overloaded Moves . | . . . . . Propulsion Burnouts . | . . . . . Robots Hopped . | . . . . . Cave-ins Triggered . | . . . . . Exploration Rate (%) 31 | 59 23 39 16 22 Regions Visited 4 Branch Regions 2 Pre-discovered Areas 1 | . . 1 . . Known Exits Taken . | . . . . . Unknown Exits Taken 4 | 1 1 1 1 . Scrap Searched . | . . . . . Spaces Dug . | . . . . . Terrain Destroyed 224 | . 16 98 88 22 Melee . | . . . . . Projectile . | . . . . . AOE 224 | . 16 98 88 22 Terrain Rammed . | . . . . . Walls Destroyed . | . . . . . Machines Disabled . | . . . . . Actions | -11 -10 -10 -9 -9 --------- Run | Scr Mat Min Mat Sto Total 4132 | 3062 205 215 232 418 Wait 2486 | 2302 . . . 184 Move 1441 | 746 144 181 188 182 Hop . | . . . . . Pick Up 45 | 8 9 5 8 15 Fast Attach . | . . . . . Attach 26 | 6 5 1 10 4 Detach 6 | . 2 1 2 1 Swap 11 | . 3 2 . 6 Drop 19 | . 9 1 2 7 Fire 92 | . 33 24 16 19 Melee 6 | . . . 6 . Ram . | . . . . . Kick . | . . . . . Crush . | . . . . . Escape Stasis . | . . . . . Rewire . | . . . . . Trap . | . . . . . Miscellaneous . | . . . . . Route ------- -11/Scrapyard -10/Materials -10/Mines (discovered 2 exits: *Mat x2) -9/Materials -9/Storage History --------- Turn | Location | Event 26 | -11/Scrapyard | Discovered new exit (range 16) 3063 | -11/Scrapyard | Entered Materials 3064 | -10/Materials | Build established: Mutant 3288 | -10/Materials | Discovered new exit (range 9) 3336 | -10/Materials | Entered Mines 3343 | -10/Mines | Met a Derelict bent on vengeance 3346 | -10/Mines | Joined a pair of Derelicts in attacking an 0b10 outpost 3549 | -10/Mines | Discovered new exit (range 10) 3588 | -10/Mines | Learned location of Storage (-9) 3589 | -10/Mines | Discovered new exit (range 5) 3597 | -10/Mines | Entered Materials 3597 | -9/Materials | Evolved 2 slots: Power x1, Utility x1 3829 | -9/Materials | Discovered new exit (range 14) 3873 | -9/Materials | Core integrity fell below 50% 3896 | -9/Materials | Entered Storage 3899 | -9/Storage | Lost 5 parts (2p1n2w) 4173 | -9/Storage | Repaired Lgt. Ion Engine? 4334 | -9/Storage | Core integrity fell below 20% 4421 | -9/Storage | Destroyed by G-47 Trooper with Particle Gun Last Messages --------------- 04363_ U-05 Engineer lays Concrete. 04367_ Beam Rifle melted. 04367_ Y-45 Defender destroyed. 04367_ U-05 Engineer lays Concrete. 04373_ System corrupted: Autogun targeting data glitched. 04373_ R-06 Scavenger destroyed. 04373_ U-05 Engineer lays Concrete. 04373_ K-01 Serf collects debris. 04374_ U-05 Engineer lays Concrete. 04375_ Overheating: System interference. 04375_ Beam Cannon temporarily disabled. 04375_ U-05 Engineer builds a Wall. 04394_ U-05 Engineer lays Concrete. 04401_ Y-45 Defender destroyed. 04406_ G-34 Mercenary destroyed. 04415_ Acquired Imp. Ion Engine. 04417_ Acquired 49 matter. 04419_ K-01 Serf collects debris. 04420_ System corrupted: Matter fused (-6). 04420_ Acquired Beam Rifle. Map ----- +----------------------------------------------------+ | # # ##? "?"?? ?"#???????????? | | # # ###? """? ???#???????????? | | # # ### ""?? ??????????????? | | # # ### ? ? ??##?????????? | | # # ##?#??#+??###????????????? | | # # # ?# ? ?? ?????????????? | | # # # ??? ??????????????????? | | # # #? ??+ ?? ??????????????? | | # # # ? # #??#????????????? | | # # =# ? ? ? ????#???????????? | | ########! !# ?"??? #??#????????????? | | ??## ### %*# ?? ????#???????????????? | | ######## =!#?"? #? ??##?????????????? | | # ! # % #? ?? ?????????????????? | | # # ##?#?# ????#????????????? | | # # ##???#? ?""??????????????? | | # # #####??? ?#??????????????? | | # ! # #??##?? ?#?#?????????????? | | # # ##?#?#???????????????????? | | # + ###?## ?##??????????????? | | # # #?###?? ?????????????????? | | # * # ###??#???????????????????? | | # ! % # ###??#???????????????????? | | # # #####?? ?????????????????? | | # # ### ## ??????????????????? | | # # #@ ! #???? ??????????????? | | #####+## #! #?? ????????????????? | | #???# #% # ?????????????????? | | ?#?## # #? ?????????????????? | | ?#### #% # ?????????????????? | | ??#?# #%= #???????????????????? | | ##??# + #?? ???#????????????? | | ???## # #?? ????????????????? | | ?##?# # #???#??????#????????? | | ????#####+# g####? ### #???????? | | ?#??# = ### ???????? | | ????# """%* # ! ???????? | | ???## ""/ =% *%= ???????? | | ?##?# " =!! ! #+###??????????????? | | ????# !%!" #????????????? | | ????# [" # """ !!!#????????????? | | ????# " # """ !!!#?#??????????? | | ?#?## # """ !! #??#?????????? | | ????###########? #????????????? | | #????????????????* ????????????????? | | ?#??????????????? "??????#?????????? | | ???#?#?????##????? ?????????????????? | | ????#???#????????? ????????????????? | | ??#?#??????????????#????????????????? | | ????#??????##?#????#????????????????? | +----------------------------------------------------+ Best States ------------- Heat Dissipation 28 Energy Generation 19 Energy Capacity 430 Matter Stores 300 Matter Capacity 300 Sight Range 16 Terrain Scan Range 16 Terrain Scan Density 60 Armor Coverage 150 Evasion (%) 40 Recoil Reduction 1 Item Schematics ----------------- None Robot Schematics ------------------ None Fabricated ------------ Nothing Alien Tech Used ----------------- None Achievements -------------- One Hack Too Far Part-time Mechanic Storm Trooper Challenges ------------ None Game ------ Seed FocalRemoteGreatsword Manual? 0 Play Time 01:30:01 Cumulative 4.6 hours Start 2020.11.05 @ 06:05:31 End 2020.11.05 @ 10:03:10 Sessions 2 Manual Loads 0 Difficulty Rogue Special Mode None Game No. 6 Rogue 6 Adventurer 0 Explorer 0 Win Type - Total 0 Types 0/0/0/0/0/0/0/0/0 Lore% 1 Gallery% 4 Achievement% 5 Wizard Run 0 Options --------- ASCII 1 Keyboard 0 Movement Vi Keybinds 0 Fullscreen 1 Font 24/Terminus Map View 60x50 Tactical HUD 1 Map Filters NONE Filters NONE Steam 1 RUN: ab2adad4-4ed6-43b6-8481-adc0b99c7012